fUSD/lending_fUSD_20240814
["ID","MTS","AMOUNT","RATE_DAILY","PERIOD"]
[334843602,1723607498912,-500.0,0.00015342,2]
[334843603,1723607498921,-1778.14,0.00015342,2]
[334843604,1723607498930,-400.0,0.00015342,2]
[334843605,1723607498940,-1254.8,0.00015342,2]
[334843606,1723607498949,-2294.9,0.00015342,2]
[334843607,1723607498959,-500.0,0.00015342,2]
[334843608,1723607498968,-1685.71,0.00015342,2]
[334843609,1723607498978,-1045.4,0.00015342,2]
[334843610,1723607498987,-769.79,0.00015342,2]
[334843611,1723607498997,-500.0,0.00015342,2]
[334843612,1723607499006,-829.12,0.00015342,2]
[334843613,1723607499016,-1819.06,0.00015342,2]
[334843614,1723607499027,-584.66,0.00015342,2]
[334843615,1723607499036,-865.12,0.00015342,2]
[334843616,1723607499045,-1828.3,0.00015342,2]
[334843617,1723607499054,-1487.62,0.00015342,2]
[334843618,1723607499064,-1120.95,0.00015342,2]
[334843619,1723607499073,-1122.91,0.00015342,2]
[334843620,1723607499082,-862.4,0.00015342,2]
[334843621,1723607499091,-849.24,0.00015342,2]
[334843622,1723607499100,-1564.47,0.00015342,2]
[334843623,1723607499109,-866.92,0.00015342,2]
[334843624,1723607499118,-500.0,0.00015342,2]
[334843625,1723607499131,-500.0,0.00015342,2]
[334843626,1723607499140,-1212.45,0.00015342,2]
[334843627,1723607499152,-1055.57,0.00015342,2]
[334843628,1723607499161,-2613.0,0.00015342,2]
[334843629,1723607499170,-1994.05,0.00015342,2]
[334843630,1723607499180,-857.51,0.00015342,2]
[334843631,1723607499189,-1338.26,0.00015342,2]
[334843632,1723607499198,-1351.32,0.00015342,2]
[334843633,1723607499209,-500.0,0.00015342,2]
[334843634,1723607499220,-500.0,0.00015342,2]
[334843635,1723607499230,-2029.71,0.00015342,2]
[334843636,1723607499239,-1111.34,0.00015342,2]
[334843637,1723607499248,-3777.94,0.00015342,2]
[334843638,1723607499257,-500.0,0.00015342,2]
[334843639,1723607499267,-500.0,0.00015342,2]
[334843640,1723607499276,-500.0,0.00015342,2]
[334843641,1723607499285,-921.58,0.00015342,2]
[334843642,1723607499295,-282.0505168,0.00015342,2]
[334843643,1723607499304,-689.07,0.00015342,2]
[334843644,1723607499313,-833.34,0.00015342,2]
[334843645,1723607499323,-500.0,0.00015342,2]
[334843646,1723607499332,-500.0,0.00015342,2]
[334843647,1723607499342,-589.77,0.00015342,2]
[334843648,1723607499351,-568.61,0.00015342,2]
[334843649,1723607499360,-500.0,0.00015342,2]
[334843650,1723607499370,-500.0,0.00015342,2]
[334843651,1723607499379,-1554.5,0.00015342,2]
[334843652,1723607499388,-500.0,0.00015342,2]
[334843653,1723607499398,-1921.5,0.00015342,2]
[334843654,1723607499416,-500.0,0.00015342,2]
[334843655,1723607499426,-500.0,0.00015342,2]
[334843656,1723607499436,-783.79,0.00015342,2]
[334843657,1723607499446,-2631.07,0.00015342,2]
[334843658,1723607499455,-500.0,0.00015342,2]
[334843659,1723607499465,-500.0,0.00015342,2]
[334843660,1723607499475,-505.7,0.00015342,2]
[334843661,1723607499485,-500.0,0.00015342,2]
[334843662,1723607499496,-573.43,0.00015342,2]
[334843663,1723607499507,-1200.87,0.00015342,2]
[334843664,1723607499517,-500.0,0.00015342,2]
[334843665,1723607499527,-1361.66,0.00015342,2]
[334843666,1723607499536,-2549.22,0.00015342,2]
[334843667,1723607499546,-500.0,0.00015342,2]
[334843668,1723607499555,-592.75,0.00015342,2]
[334843669,1723607499564,-1917.84,0.00015342,2]
[334843670,1723607499573,-965.13,0.00015342,2]
[334843671,1723607499582,-1397.22,0.00015342,2]
[334843672,1723607499592,-264.25335886,0.00015342,2]
[334843673,1723607499601,-1460.11,0.00015342,2]
[334843674,1723607499610,-500.0,0.00015342,2]
[334843675,1723607499620,-844.41,0.00015342,2]
[334843676,1723607499630,-500.0,0.00015342,2]
[334843677,1723607499639,-764.1,0.00015342,2]
[334843678,1723607499649,-1274.82,0.00015342,2]
[334843679,1723607499658,-2325.52,0.00015342,2]
[334843680,1723607499668,-1259.41,0.00015342,2]
[334843681,1723607499677,-500.0,0.00015342,2]
[334843682,1723607499687,-500.0,0.00015342,2]
[334843683,1723607499696,-500.0,0.00015342,2]
[334843684,1723607499705,-851.27,0.00015342,2]
[334843685,1723607499715,-929.25,0.00015342,2]
[334843686,1723607499725,-883.88,0.00015342,2]
[334843687,1723607499734,-512.16,0.00015342,2]
[334843688,1723607499744,-2127.39,0.00015342,2]
[334843689,1723607499754,-589.33,0.00015342,2]
[334843690,1723607499763,-1891.32,0.00015342,2]
[334843691,1723607499773,-500.0,0.00015342,2]
[334843692,1723607499784,-1630.74,0.00015342,2]
[334843693,1723607499793,-2624.85,0.00015342,2]
[334843694,1723607499803,-2240.02,0.00015342,2]
[334843695,1723607499812,-2114.43,0.00015342,2]
[334843696,1723607499821,-500.0,0.00015342,2]
[334843697,1723607499830,-2489.36,0.00015342,2]
[334843698,1723607499839,-1834.05,0.00015342,2]
[334843699,1723607499849,-514.91,0.00015342,2]
[334843700,1723607499858,-530.28,0.00015342,2]
[334843701,1723607499867,-657.56,0.00015342,2]
[334843702,1723607499877,-580.46,0.00015342,2]
[334843703,1723607499886,-500.0,0.00015342,2]
[334843704,1723607499895,-2155.23,0.00015342,2]
[334843705,1723607499907,-729.49,0.00015342,2]
[334843706,1723607499916,-1292.57,0.00015342,2]
[334843707,1723607499925,-803.11,0.00015342,2]
[334843708,1723607499935,-500.0,0.00015342,2]
[334843709,1723607499944,-784.66,0.00015342,2]
[334843710,1723607499954,-985.66,0.00015342,2]
[334843711,1723607499963,-1484.83,0.00015342,2]
[334843712,1723607499972,-558.89,0.00015342,2]
[334843713,1723607499982,-500.0,0.00015342,2]
[334843714,1723607499991,-1171.57,0.00015342,2]
[334843715,1723607500000,-258.59423199,0.00015342,2]
[334843716,1723607500009,-961.68,0.00015342,2]
[334843717,1723607500146,-1433.08,0.00015342,2]
[334843718,1723607500159,-644.74,0.00015342,2]
[334843719,1723607500169,-1605.56,0.00015342,2]
[334843720,1723607500179,-544.66,0.00015342,2]
[334843721,1723607500188,-500.0,0.00015342,2]
[334843722,1723607500197,-671.88,0.00015342,2]
[334843723,1723607500208,-966.64,0.00015342,2]
[334843724,1723607500218,-1438.91,0.00015342,2]
[334843725,1723607500227,-3279.05,0.00015342,2]
[334843726,1723607500236,-1269.61,0.00015342,2]
[334843727,1723607500245,-2431.77,0.00015342,2]
[334843728,1723607500254,-1897.29,0.00015342,2]
[334843729,1723607500264,-500.0,0.00015342,2]
[334843730,1723607500273,-1900.43,0.00015342,2]
[334843731,1723607500282,-2321.53,0.00015342,2]
[334843732,1723607500291,-500.0,0.00015342,2]
[334843733,1723607500300,-500.0,0.00015342,2]
[334843734,1723607500310,-1225.74,0.00015342,2]
[334843735,1723607500319,-751.13,0.00015342,2]
[334843736,1723607500329,-500.0,0.00015342,2]
[334843737,1723607500338,-2710.3,0.00015342,2]
[334843738,1723607500348,-500.0,0.00015342,2]
[334843739,1723607500358,-590.22,0.00015342,2]
[334843740,1723607500367,-1784.2,0.00015342,2]
[334843741,1723607500376,-1096.21,0.00015342,2]
[334843742,1723607500385,-500.0,0.00015342,2]
[334843743,1723607500395,-500.0,0.00015342,2]
[334843744,1723607500413,-500.0,0.00015342,2]
[334843745,1723607500422,-500.0,0.00015342,2]
[334843746,1723607500431,-500.0,0.00015342,2]
[334843747,1723607500442,-843.23,0.00015342,2]
[334843748,1723607500453,-500.0,0.00015342,2]
[334843749,1723607500462,-500.0,0.00015342,2]
[334843750,1723607500472,-500.0,0.00015342,2]
[334843751,1723607500482,-630.2,0.00015342,2]
[334843752,1723607500491,-500.0,0.00015342,2]
[334843753,1723607500501,-500.0,0.00015342,2]
[334843754,1723607500511,-1522.48,0.00015342,2]
[334843755,1723607500521,-500.0,0.00015342,2]
[334843756,1723607500531,-913.08,0.00015342,2]
[334843757,1723607500541,-500.0,0.00015342,2]
[334843758,1723607500551,-1893.09,0.00015342,2]
[334843759,1723607500561,-648.5,0.00015342,2]
[334843760,1723607500572,-915.27,0.00015342,2]
[334843761,1723607500581,-500.0,0.00015342,2]
[334843762,1723607500591,-2186.94,0.00015342,2]
[334843763,1723607500601,-3275.38,0.00015342,2]
[334843764,1723607500611,-500.0,0.00015342,2]
[334843765,1723607500622,-500.0,0.00015342,2]
[334843766,1723607500631,-500.0,0.00015342,2]
[334843767,1723607500642,-1677.03,0.00015342,2]
[334843768,1723607500655,-1309.3,0.00015342,2]
[334843769,1723607500666,-856.83,0.00015342,2]
[334843770,1723607500677,-504.55778549,0.00015342,2]
[334843771,1723607500687,-500.0,0.00015342,2]
[334843772,1723607500697,-794.25,0.00015342,2]
[334843773,1723607500710,-1414.57,0.00015342,2]
[334843774,1723607500719,-1252.5,0.00015342,2]
[334843775,1723607500730,-3148.01,0.00015342,2]
[334843776,1723607500740,-1119.98,0.00015342,2]
[334843777,1723607500751,-696.1,0.00015342,2]
[334843778,1723607500761,-500.0,0.00015342,2]
[334843779,1723607500771,-616.25433291,0.00015342,2]
[334843780,1723607500781,-3372.08,0.00015342,2]
[334843781,1723607500791,-500.0,0.00015342,2]
[334843782,1723607500801,-1053.98,0.00015342,2]
[334843783,1723607500812,-1421.12,0.00015342,2]
[334843784,1723607500822,-500.0,0.00015342,2]
[334843785,1723607500832,-6656.08,0.00015342,2]
[334843786,1723607500842,-863.04,0.00015342,2]
[334843787,1723607500851,-500.0,0.00015342,2]
[334843788,1723607500861,-640.54,0.00015342,2]
[334843789,1723607500871,-1185.24,0.00015342,2]
[334843790,1723607500881,-1337.92,0.00015342,2]
[334843791,1723607500891,-500.0,0.00015342,2]
[334843792,1723607500904,-881.61,0.00015342,2]
[334843793,1723607500914,-500.0,0.00015342,2]
[334843794,1723607500925,-4803.1,0.00015342,2]
[334843795,1723607500935,-548.08,0.00015342,2]
[334843796,1723607500946,-500.0,0.00015342,2]
[334843797,1723607500957,-3535.74,0.00015342,2]
[334843798,1723607500967,-500.0,0.00015342,2]
[334843799,1723607500978,-500.0,0.00015342,2]
[334843800,1723607500988,-1286.34,0.00015342,2]
[334843801,1723607500999,-700.94,0.00015342,2]
[334843802,1723607501009,-500.0,0.00015342,2]
[334843803,1723607501019,-500.0,0.00015342,2]
[334843804,1723607501029,-500.0,0.00015342,2]
[334843805,1723607501039,-500.0,0.00015342,2]
[334843806,1723607501049,-605.71,0.00015342,2]
[334843807,1723607501060,-500.0,0.00015342,2]
[334843808,1723607501070,-500.0,0.00015342,2]
[334843809,1723607501080,-2533.03,0.00015342,2]
[334843810,1723607501091,-655.89,0.00015342,2]
[334843811,1723607501101,-528.71,0.00015342,2]
[334843812,1723607501112,-694.17,0.00015342,2]
[334843813,1723607501123,-325.11947278,0.00015342,2]
[334843814,1723607501136,-500.0,0.00015342,2]
[334843815,1723607501147,-1287.07,0.00015342,2]
[334843816,1723607501167,-764.7,0.00015342,2]
[334843817,1723607501179,-7712.44,0.00015342,2]
[334843818,1723607501189,-500.0,0.00015342,2]
[334843819,1723607501200,-826.02,0.00015342,2]
[334843820,1723607501210,-3051.08,0.00015342,2]
[334843821,1723607501220,-500.0,0.00015342,2]
[334843822,1723607501230,-2301.35,0.00015342,2]
[334843823,1723607501241,-500.0,0.00015342,2]
[334843824,1723607501251,-892.62,0.00015342,2]
[334843825,1723607501261,-573.74,0.00015342,2]
[334843826,1723607501271,-500.0,0.00015342,2]
[334843827,1723607501281,-1107.8,0.00015342,2]
[334843828,1723607501291,-1861.4,0.00015342,2]
[334843829,1723607501300,-500.0,0.00015342,2]
[334843830,1723607501310,-2273.24,0.00015342,2]
[334843831,1723607501320,-2591.06,0.00015342,2]
[334843832,1723607501331,-500.0,0.00015342,2]
[334843833,1723607501341,-665.28,0.00015342,2]
[334843834,1723607501351,-757.85,0.00015342,2]
[334843835,1723607501361,-618.25,0.00015342,2]
[334843836,1723607501371,-500.0,0.00015342,2]
[334843837,1723607501382,-2359.68,0.00015342,2]
[334843838,1723607501392,-1206.64,0.00015342,2]
[334843839,1723607501405,-992.14,0.00015342,2]
[334843840,1723607501416,-616.31,0.00015342,2]
[334843841,1723607501425,-500.0,0.00015342,2]
[334843842,1723607501436,-1728.26,0.00015342,2]
[334843843,1723607501446,-1436.09,0.00015342,2]
[334843844,1723607501457,-1282.64,0.00015342,2]
[334843845,1723607501467,-500.0,0.00015342,2]
[334843846,1723607501478,-1719.54,0.00015342,2]
[334843847,1723607501487,-1106.45,0.00015342,2]
[334843848,1723607501497,-567.82,0.00015342,2]
[334843849,1723607501507,-21892.84,0.00015342,2]
[334843850,1723607501517,-1004.98,0.00015342,2]
[334843851,1723607501527,-1425.33,0.00015342,2]
[334843852,1723607501537,-12983.85,0.00015342,2]
[334843853,1723607501547,-500.0,0.00015342,2]
[334843854,1723607501557,-794.39,0.00015342,2]
[334843855,1723607501567,-500.0,0.00015342,2]
[334843856,1723607501577,-947.71,0.00015342,2]
[334843857,1723607501587,-1334.68,0.00015342,2]
[334843858,1723607501597,-74311.05,0.00015342,2]
[334843859,1723607501608,-2185.69,0.00015342,2]
[334843860,1723607501618,-2926.39,0.00015342,2]
[334843861,1723607501629,-11265.49,0.00015342,2]
[334843862,1723607501638,-501.02705795,0.00015342,2]
[334843863,1723607501648,-684.84,0.00015342,2]
[334843864,1723607501658,-827.11,0.00015342,2]
[334843865,1723607501668,-19652.25,0.00015342,2]
[334843866,1723607501678,-206.77366358,0.00015342,2]
[334843867,1723607501687,-949.5,0.00015342,2]
[334843868,1723607501696,-2325.77,0.00015342,2]
[334843869,1723607501706,-500.0,0.00015342,2]
[334843870,1723607501716,-1060.07,0.00015342,2]
[334843871,1723607501725,-500.0,0.00015342,2]
[334843872,1723607501735,-931.34,0.00015342,2]
[334843873,1723607501745,-500.0,0.00015342,2]
[334843874,1723607501755,-11770.95,0.00015342,2]
[334843875,1723607501765,-542.79,0.00015342,2]
[334843876,1723607501775,-3216.15,0.00015342,2]
[334843877,1723607501786,-996.72,0.00015342,2]
[334843878,1723607501796,-500.0,0.00015342,2]
[334843879,1723607501805,-500.0,0.00015342,2]
[334843880,1723607501815,-864.22,0.00015342,2]
[334843881,1723607501825,-1090.63,0.00015342,2]
[334843882,1723607501835,-754.69,0.00015342,2]
[334843883,1723607501845,-4142.45,0.00015342,2]
[334843884,1723607501854,-500.0,0.00015342,2]
[334843885,1723607501864,-500.0,0.00015342,2]
[334843886,1723607501874,-16309.16,0.00015342,2]
[334843887,1723607501883,-2654.22,0.00015342,2]
[334843888,1723607501893,-25466.62,0.00015342,2]
[334843889,1723607501903,-4541.96,0.00015342,2]
[334843890,1723607501912,-519.09,0.00015342,2]
[334843891,1723607501922,-500.0,0.00015342,2]
[334843892,1723607501932,-539.83,0.00015342,2]
[334843893,1723607501942,-889.01,0.00015342,2]
[334843894,1723607501951,-500.0,0.00015342,2]
[334843895,1723607501960,-2396.89,0.00015342,2]
[334843896,1723607501970,-1347.69,0.00015342,2]
[334843897,1723607501980,-677.92,0.00015342,2]
[334843898,1723607501989,-500.0,0.00015342,2]
[334843899,1723607501999,-6138.85,0.00015342,2]
[334843900,1723607502008,-9972.45,0.00015342,2]
[334843901,1723607502018,-1022.55,0.00015342,2]
[334843902,1723607502027,-809.32,0.00015342,2]
[334843903,1723607502037,-500.0,0.00015342,2]
[334843904,1723607502048,-642.44,0.00015342,2]
[334843905,1723607502058,-500.0,0.00015342,2]
[334843906,1723607502068,-8165.91,0.00015342,2]
[334843907,1723607502077,-2852.39,0.00015342,2]
[334843908,1723607502087,-1024.38,0.00015342,2]
[334843909,1723607502096,-5016.05,0.00015342,2]
[334843910,1723607502106,-1105.51,0.00015342,2]
[334843911,1723607502115,-779.07,0.00015342,2]
[334843912,1723607502126,-2644.48,0.00015342,2]
[334843913,1723607502137,-4884.61,0.00015342,2]
[334843914,1723607502148,-5077.56,0.00015342,2]
[334843915,1723607502158,-500.0,0.00015342,2]
[334843916,1723607502168,-500.0,0.00015342,2]
[334843917,1723607502178,-500.0,0.00015342,2]
[334843918,1723607502188,-500.0,0.00015342,2]
[334843919,1723607502198,-6250.39,0.00015342,2]
[334843920,1723607502210,-1108.79,0.00015342,2]
[334843921,1723607502221,-700.09,0.00015342,2]
[334843922,1723607502230,-2760.64,0.00015342,2]
[334843923,1723607502240,-661.27,0.00015342,2]
[334843924,1723607502250,-1348.31,0.00015342,2]
[334843925,1723607502261,-14387.22,0.00015342,2]
[334843926,1723607502270,-860.11,0.00015342,2]
[334843927,1723607502279,-500.0,0.00015342,2]
[334843928,1723607502289,-844.08,0.00015342,2]
[334843929,1723607502298,-7897.51,0.00015342,2]
[334843930,1723607502308,-500.0,0.00015342,2]
[334843931,1723607502317,-6779.45,0.00015342,2]
[334843932,1723607502326,-2175.6,0.00015342,2]
[334843933,1723607502336,-1926.56,0.00015342,2]
[334843934,1723607502346,-500.0,0.00015342,2]
[334843935,1723607502356,-7867.37,0.00015342,2]
[334843936,1723607502366,-966.36,0.00015342,2]
[334843937,1723607502377,-2876.73,0.00015342,2]
[334843938,1723607502387,-20943.27,0.00015342,2]
[334843939,1723607502397,-500.0,0.00015342,2]
[334843940,1723607502408,-501.32610856,0.00015342,2]
[334843941,1723607502417,-772.3,0.00015342,2]
[334843942,1723607502427,-620.71,0.00015342,2]
[334843943,1723607502437,-500.0,0.00015342,2]
[334843944,1723607502446,-513.11,0.00015342,2]
[334843945,1723607502456,-656.4,0.00015342,2]
[334843946,1723607502466,-500.0,0.00015342,2]
[334843947,1723607502476,-818.88,0.00015342,2]
[334843948,1723607502486,-668.43,0.00015342,2]
[334843949,1723607502496,-500.0,0.00015342,2]
[334843950,1723607502506,-500.0,0.00015342,2]
[334843951,1723607502516,-500.0,0.00015342,2]
[334843952,1723607502525,-3735.01,0.00015342,2]
[334843953,1723607502535,-12745.7,0.00015342,2]
[334843954,1723607502544,-1936.62,0.00015342,2]
[334843955,1723607502553,-1883.94,0.00015342,2]
[334843956,1723607502562,-4612.26,0.00015342,2]
[334843957,1723607502572,-500.0,0.00015342,2]
[334843958,1723607502582,-1326.52,0.00015342,2]
[334843959,1723607502592,-1144.63,0.00015342,2]
[334843960,1723607502601,-3537.48,0.00015342,2]
[334843961,1723607502610,-23504.48,0.00015342,2]
[334843962,1723607502619,-500.0,0.00015342,2]
[334843963,1723607502629,-500.0,0.00015342,2]
[334843964,1723607502638,-508.82731905,0.00015342,2]
[334843965,1723607502648,-3439.86,0.00015342,2]
[334843966,1723607502659,-500.0,0.00015342,2]
[334843967,1723607502668,-1749.84,0.00015342,2]
[334843968,1723607502677,-1169.49,0.00015342,2]
[334843969,1723607502686,-2025.45,0.00015342,2]
[334843970,1723607502975,-861.16,0.00015342,2]
[334843971,1723607503058,-500.0,0.00015342,2]
[334843972,1723607503068,-500.0,0.00015342,2]
[334843973,1723607503079,-500.0,0.00015342,2]
[334843974,1723607503089,-7943.45,0.00015342,2]
[334843975,1723607503098,-500.0,0.00015342,2]
[334843976,1723607503108,-13270.11,0.00015342,2]
[334843977,1723607503118,-960.52,0.00015342,2]
[334843978,1723607503129,-731.33,0.00015342,2]
[334843979,1723607503139,-1144.12,0.00015342,2]
[334843980,1723607503149,-789.39,0.00015342,2]
[334843981,1723607503159,-1646.88,0.00015342,2]
[334843982,1723607503169,-2551.38,0.00015342,2]
[334843983,1723607503179,-867.71,0.00015342,2]
[334843984,1723607503189,-5047.14,0.00015342,2]
[334843985,1723607503199,-1652.02,0.00015342,2]
[334843986,1723607503212,-3458.14,0.00015342,2]
[334843987,1723607503223,-412.24868888,0.00015342,2]
[334843988,1723607503233,-500.0,0.00015342,2]
[334843989,1723607503243,-853.31,0.00015342,2]
[334843990,1723607503253,-1116.13,0.00015342,2]
[334843991,1723607503263,-500.0,0.00015342,2]
[334843992,1723607503274,-500.0,0.00015342,2]
[334843993,1723607503285,-1828.19,0.00015342,2]
[334843994,1723607503296,-2030.16,0.00015342,2]
[334843995,1723607503307,-981.94,0.00015342,2]
[334843996,1723607503317,-816.29,0.00015342,2]
[334843997,1723607503327,-618.17,0.00015342,2]
[334843998,1723607503338,-500.0,0.00015342,2]
[334843999,1723607503349,-1632.54,0.00015342,2]
[334844000,1723607503360,-498.44949228,0.00015342,2]
[334844001,1723607503371,-1877.65,0.00015342,2]
[334844002,1723607503381,-500.0,0.00015342,2]
[334844003,1723607503393,-2405.3,0.00015342,2]
[334844004,1723607503406,-3032.3,0.00015342,2]
[334844005,1723607503417,-527.4,0.00015342,2]
[334844006,1723607503428,-3859.03,0.00015342,2]
[334844007,1723607503440,-2540.67,0.00015342,2]
[334844008,1723607503450,-511.84,0.00015342,2]
[334844009,1723607503459,-5924.29,0.00015342,2]
[334844010,1723607503469,-500.0,0.00015342,2]
[334844011,1723607503480,-500.0,0.00015342,2]
[334844012,1723607503491,-714.75,0.00015342,2]
[334844013,1723607503500,-2044.59,0.00015342,2]
[334844014,1723607503511,-14638.33,0.00015342,2]
[334844015,1723607503522,-2856.42,0.00015342,2]
[334844016,1723607503534,-500.0,0.00015342,2]
[334844017,1723607503545,-3003.74,0.00015342,2]
[334844018,1723607503556,-6014.88,0.00015342,2]
[334844019,1723607503567,-1266.06,0.00015342,2]
[334844020,1723607503577,-2719.38,0.00015342,2]
[334844021,1723607503587,-500.0,0.00015342,2]
[334844022,1723607503597,-7501.73,0.00015342,2]
[334844023,1723607503607,-852.97,0.00015342,2]
[334844024,1723607503617,-2454.88,0.00015342,2]
[334844025,1723607503627,-500.0,0.00015342,2]
[334844026,1723607503637,-1734.13,0.00015342,2]
[334844027,1723607503647,-1936.84,0.00015342,2]
[334844028,1723607503657,-465.77754805,0.00015342,2]
[334844029,1723607503667,-500.0,0.00015342,2]
[334844030,1723607503677,-5008.91,0.00015342,2]
[334844031,1723607503686,-500.0,0.00015342,2]
[334844032,1723607503696,-500.0,0.00015342,2]
[334844033,1723607503707,-3579.33,0.00015342,2]
[334844034,1723607503716,-512.05,0.00015342,2]
[334844035,1723607503727,-2136.98,0.00015342,2]
[334844036,1723607503737,-3081.75,0.00015342,2]
[334844037,1723607503748,-1834.77,0.00015342,2]
[334844038,1723607503758,-3352.55,0.00015342,2]
[334844039,1723607503769,-2280.59,0.00015342,2]
[334844040,1723607503780,-2616.01,0.00015342,2]
[334844041,1723607503790,-500.0,0.00015342,2]
[334844042,1723607503801,-621.9,0.00015342,2]
[334844043,1723607503812,-4828.17,0.00015342,2]
[334844044,1723607503823,-676.11,0.00015342,2]
[334844045,1723607503834,-500.0,0.00015342,2]
[334844046,1723607503845,-5350.32,0.00015342,2]
[334844047,1723607503855,-3896.23,0.00015342,2]
[334844048,1723607503865,-677.37,0.00015342,2]
[334844049,1723607503876,-7808.28,0.00015342,2]
[334844050,1723607503888,-500.0,0.00015342,2]
[334844051,1723607503899,-500.0,0.00015342,2]
[334844052,1723607503909,-1579.62,0.00015342,2]
[334844053,1723607503919,-2868.97,0.00015342,2]
[334844054,1723607503930,-670.24,0.00015342,2]
[334844055,1723607503940,-500.0,0.00015342,2]
[334844056,1723607503952,-2601.3,0.00015342,2]
[334844057,1723607503962,-2687.31,0.00015342,2]
[334844058,1723607503971,-2583.71,0.00015342,2]
[334844059,1723607503982,-3504.73,0.00015342,2]
[334844060,1723607503992,-500.0,0.00015342,2]
[334844061,1723607504002,-3882.13,0.00015342,2]
[334844062,1723607504013,-4107.19,0.00015342,2]
[334844063,1723607504022,-698.86,0.00015342,2]
[334844064,1723607504032,-500.0,0.00015342,2]
[334844065,1723607504041,-596.67,0.00015342,2]
[334844066,1723607504052,-2236.74,0.00015342,2]
[334844067,1723607504062,-500.0,0.00015342,2]
[334844068,1723607504072,-786.88,0.00015342,2]
[334844069,1723607504082,-639.71,0.00015342,2]
[334844070,1723607504092,-1100.89,0.00015342,2]
[334844071,1723607504103,-500.0,0.00015342,2]
[334844072,1723607504114,-742.57,0.00015342,2]
[334844073,1723607504127,-500.0,0.00015342,2]
[334844074,1723607504139,-691.92,0.00015342,2]
[334844075,1723607504149,-1668.19,0.00015342,2]
[334844076,1723607504162,-500.0,0.00015342,2]
[334844077,1723607504172,-8906.01,0.00015342,2]
[334844078,1723607504182,-3096.07,0.00015342,2]
[334844079,1723607504192,-688.31,0.00015342,2]
[334844080,1723607504203,-500.0,0.00015342,2]
[334844081,1723607504217,-521.01,0.00015342,2]
[334844082,1723607504228,-2079.25,0.00015342,2]
[334844083,1723607504239,-3714.26,0.00015342,2]
[334844084,1723607504250,-500.0,0.00015342,2]
[334844085,1723607504261,-500.0,0.00015342,2]
[334844086,1723607504271,-866.22,0.00015342,2]
[334844087,1723607504282,-1386.58,0.00015342,2]
[334844088,1723607504293,-2392.97546679,0.00015342,2]
[334844089,1723607504354,-5025.63453321,0.00015342,2]
[334844090,1723607504366,-581.53319838,0.00015342,2]
[334844091,1723607504377,-887.71,0.00015342,2]
[334844092,1723607504388,-500.0,0.00015342,2]
[334844093,1723607504397,-3269.23,0.00015342,2]
[334844094,1723607504408,-500.0,0.00015342,2]
[334844095,1723607504417,-1076.95,0.00015342,2]
[334844096,1723607504427,-707.28,0.00015342,2]
[334844097,1723607504437,-5659.08,0.00015342,2]
[334844098,1723607504447,-2929.81,0.00015342,2]
[334844099,1723607504456,-502.07326941,0.00015342,2]
[334844100,1723607504466,-2501.36,0.00015342,2]
[334844101,1723607504476,-1043.59,0.00015342,2]